[Event "*** Titled Tuesday Blitz"]
[Site "Chess.com"]
[Date "2020.11.03"]
[Round "1"]
[White "GMG"]
[Black "JoliyRoger"]
[Result "1/2-1/2"]
[WhiteElo "2713"]
[BlackElo "2378"]
[TimeControl "180+1"]
[EndTime "10:07:23 PST"]
[Termination "Game drawn by repetition"]

1. Nf3 {[%clk 0:02:51.1]} 1... Nf6 {[%clk 0:02:59.8]} 2. g3 {[%clk 0:02:50.8]}
2... c5 {[%clk 0:02:59.9]} 3. c4 {[%clk 0:02:49.4]} 3... Nc6 {[%clk 0:03:00.3]}
4. Bg2 {[%clk 0:02:47.9]} 4... e6 {[%clk 0:03:00.9]} 5. O-O {[%clk 0:02:46.1]}
5... Be7 {[%clk 0:03:01.4]} 6. Nc3 {[%clk 0:02:45.4]} 6... O-O {[%clk
0:03:00.5]} 7. d4 {[%clk 0:02:44.9]} 7... cxd4 {[%clk 0:03:01.1]} 8. Nxd4 {[%clk
0:02:45.8]} 8... Ne5 {[%clk 0:03:01.6]} 9. b3 {[%clk 0:02:43.3]} 9... d6 {[%clk
0:02:59.6]} 10. Bb2 {[%clk 0:02:41.9]} 10... a6 {[%clk 0:03:00.1]} 11. Nc2
{[%clk 0:02:33.9]} 11... Qc7 {[%clk 0:03:00]} 12. Rc1 {[%clk 0:02:32.7]} 12...
Rb8 {[%clk 0:03:00.6]} 13. Ne3 {[%clk 0:02:13.2]} 13... Re8 {[%clk 0:02:58.6]}
14. h3 {[%clk 0:02:08.6]} 14... b6 {[%clk 0:02:58.1]} 15. Qd2 {[%clk 0:01:34.8]}
15... Bb7 {[%clk 0:02:55.6]} 16. Rfd1 {[%clk 0:01:35.4]} 16... h6 {[%clk
0:02:48.9]} 17. Ba3 {[%clk 0:01:15.2]} 17... Red8 {[%clk 0:02:39.5]} 18. f4
{[%clk 0:00:52.6]} 18... Ng6 {[%clk 0:02:35.7]} 19. h4 {[%clk 0:00:40.4]} 19...
Bxg2 {[%clk 0:02:32.4]} 20. Nxg2 {[%clk 0:00:39.3]} 20... Qb7 {[%clk 0:02:21.8]}
21. Qe3 {[%clk 0:00:29.7]} 21... b5 {[%clk 0:02:20.7]} 22. cxb5 {[%clk
0:00:30.2]} 22... axb5 {[%clk 0:02:21.2]} 23. Bb4 {[%clk 0:00:30.6]} 23... d5
{[%clk 0:02:15.1]} 24. Bxe7 {[%clk 0:00:29.4]} 24... Nxe7 {[%clk 0:02:15.6]} 25.
a4 {[%clk 0:00:21.6]} 25... bxa4 {[%clk 0:02:07]} 26. bxa4 {[%clk 0:00:22.5]}
26... Ng4 {[%clk 0:01:57.4]} 27. Qc5 {[%clk 0:00:12.8]} 27... Rdc8 {[%clk
0:01:49.5]} 28. Qa5 {[%clk 0:00:12.8]} 28... Ra8 {[%clk 0:01:40.6]} 29. Qb5
{[%clk 0:00:13]} 29... Qa7+ {[%clk 0:01:40.4]} 30. e3 {[%clk 0:00:13.4]} 30...
Nxe3 {[%clk 0:01:34.2]} 31. Re1 {[%clk 0:00:11.6]} 31... Ng4+ {[%clk 0:01:28.7]}
32. Kh1 {[%clk 0:00:10.6]} 32... Nf5 {[%clk 0:01:29.2]} 33. Ne2 {[%clk
0:00:07.3]} 33... Qf2 {[%clk 0:01:10.4]} 34. Qb7 {[%clk 0:00:07]} 34... Nxg3+
{[%clk 0:01:07.4]} 35. Nxg3 {[%clk 0:00:07.1]} 35... Qxg3 {[%clk 0:01:08.1]} 36.
Rxc8+ {[%clk 0:00:06.5]} 36... Kh7 {[%clk 0:00:56.5]} 37. Kg1 {[%clk 0:00:06.8]}
37... Qf2+ {[%clk 0:00:43.2]} 38. Kh1 {[%clk 0:00:06.9]} 38... Qg3 {[%clk
0:00:41.9]} 39. Kg1 {[%clk 0:00:07]} 39... Qf2+ {[%clk 0:00:21.6]} 40. Kh1
{[%clk 0:00:07.3]} 40... Qg3 {[%clk 0:00:12.6]} 1/2-1/2

[Event "*** Titled Tuesday Blitz"]
[Site "Chess.com"]
[Date "2020.11.03"]
[Round "1"]
[White "profofchess"]
[Black "MarcoRiehle"]
[Result "0-1"]
[WhiteElo "2365"]
[BlackElo "2713"]
[TimeControl "180+1"]
[EndTime "10:07:23 PST"]
[Termination "MarcoRiehle won on time"]

1. e4 {[%clk 0:02:59]} 1... e5 {[%clk 0:02:58]} 2. Nf3 {[%clk 0:02:58]} 2... Nf6
{[%clk 0:02:57.5]} 3. Nc3 {[%clk 0:02:58.5]} 3... Nc6 {[%clk 0:02:56.9]} 4. Bb5
{[%clk 0:02:58.6]} 4... Bc5 {[%clk 0:02:56.2]} 5. Nxe5 {[%clk 0:02:57.6]} 5...
Nxe5 {[%clk 0:02:53.4]} 6. d4 {[%clk 0:02:57.2]} 6... Bd6 {[%clk 0:02:53]} 7. f4
{[%clk 0:02:57.1]} 7... Nc6 {[%clk 0:02:51.8]} 8. e5 {[%clk 0:02:57.1]} 8... Bb4
{[%clk 0:02:50.6]} 9. exf6 {[%clk 0:02:49.8]} 9... Qxf6 {[%clk 0:02:51.5]} 10.
Be3 {[%clk 0:02:19.5]} 10... O-O {[%clk 0:02:49.5]} 11. O-O {[%clk 0:02:16.3]}
11... Bxc3 {[%clk 0:02:47.7]} 12. bxc3 {[%clk 0:02:15.4]} 12... a6 {[%clk
0:02:44.1]} 13. Bd3 {[%clk 0:02:13.3]} 13... Re8 {[%clk 0:02:41.9]} 14. Qf3
{[%clk 0:02:08.4]} 14... d5 {[%clk 0:02:35.7]} 15. f5 {[%clk 0:02:06.9]} 15...
Bd7 {[%clk 0:02:35.1]} 16. Qg3 {[%clk 0:02:04.7]} 16... h6 {[%clk 0:02:26.3]}
17. Bf4 {[%clk 0:01:51.7]} 17... Re7 {[%clk 0:02:18.6]} 18. Bxc7 {[%clk
0:01:24.1]} 18... Rae8 {[%clk 0:02:15.5]} 19. Bf4 {[%clk 0:01:23.9]} 19... b5
{[%clk 0:02:07.3]} 20. h4 {[%clk 0:01:20]} 20... Na5 {[%clk 0:02:01.1]} 21. Be5
{[%clk 0:01:18]} 21... Rxe5 {[%clk 0:02:00.9]} 22. dxe5 {[%clk 0:01:18.5]} 22...
Rxe5 {[%clk 0:02:01.5]} 23. Rae1 {[%clk 0:01:12.6]} 23... Rxe1 {[%clk
0:01:57.1]} 24. Qxe1 {[%clk 0:01:13.5]} 24... Nc6 {[%clk 0:01:54.3]} 25. g3
{[%clk 0:00:57]} 25... Qd6 {[%clk 0:01:51.4]} 26. Qe3 {[%clk 0:00:39.7]} 26...
f6 {[%clk 0:01:47.8]} 27. Kh2 {[%clk 0:00:33.7]} 27... Ne5 {[%clk 0:01:47.5]}
28. Qf4 {[%clk 0:00:33.3]} 28... Bc6 {[%clk 0:01:41.6]} 29. Qb4 {[%clk
0:00:29.7]} 29... Qc7 {[%clk 0:01:38.1]} 30. Qc5 {[%clk 0:00:27.1]} 30... h5
{[%clk 0:01:35.2]} 31. Kh3 {[%clk 0:00:25.5]} 31... Qd7 {[%clk 0:01:22.3]} 32.
Rf4 {[%clk 0:00:24.6]} 32... Kh7 {[%clk 0:01:13.5]} 33. Be2 {[%clk 0:00:24.6]}
33... Qe8 {[%clk 0:01:04.7]} 34. Qd4 {[%clk 0:00:20.4]} 34... Bd7 {[%clk
0:01:00]} 35. Kh2 {[%clk 0:00:17.9]} 35... Nc6 {[%clk 0:00:57.8]} 36. Qd1 {[%clk
0:00:17.6]} 36... Qe3 {[%clk 0:00:55.6]} 37. Bxh5 {[%clk 0:00:15.8]} 37... Ne5
{[%clk 0:00:54.4]} 38. Bg6+ {[%clk 0:00:15.1]} 38... Kg8 {[%clk 0:00:52.4]} 39.
Qh5 {[%clk 0:00:14]} 39... Qxc3 {[%clk 0:00:43.9]} 40. Qh7+ {[%clk 0:00:13.6]}
40... Kf8 {[%clk 0:00:44.5]} 41. Qh8+ {[%clk 0:00:14.1]} 41... Ke7 {[%clk
0:00:45]} 42. Qxg7+ {[%clk 0:00:14.5]} 42... Kd6 {[%clk 0:00:45.4]} 43. Qxf6+
{[%clk 0:00:14.4]} 43... Kc7 {[%clk 0:00:45.6]} 44. Qxa6 {[%clk 0:00:10]} 44...
Qxc2+ {[%clk 0:00:37.2]} 45. Kh3 {[%clk 0:00:09.2]} 45... Qc1 {[%clk 0:00:34.5]}
46. Qa5+ {[%clk 0:00:07.5]} 46... Kb7 {[%clk 0:00:33.4]} 47. Kh2 {[%clk
0:00:03.4]} 47... Qc2+ {[%clk 0:00:32.2]} 48. Kh3 {[%clk 0:00:03.4]} 48... Nxg6
{[%clk 0:00:32.1]} 0-1

[Event "*** Titled Tuesday Blitz"]
[Site "Chess.com"]
[Date "2020.11.03"]
[Round "1"]
[White "asms9699"]
[Black "glebus008"]
[Result "0-1"]
[WhiteElo "2579"]
[BlackElo "2314"]
[TimeControl "180+1"]
[EndTime "10:07:24 PST"]
[Termination "glebus008 won by checkmate"]

1. c4 {[%clk 0:03:00.4]} 1... e6 {[%clk 0:02:59.6]} 2. g3 {[%clk 0:03:00.9]}
2... d5 {[%clk 0:02:59.6]} 3. Bg2 {[%clk 0:03:01.3]} 3... Nf6 {[%clk 0:02:59.8]}
4. Nf3 {[%clk 0:03:01.9]} 4... Be7 {[%clk 0:02:59.9]} 5. O-O {[%clk 0:03:02]}
5... O-O {[%clk 0:03:00.4]} 6. b3 {[%clk 0:03:02.2]} 6... c5 {[%clk 0:03:00.2]}
7. Bb2 {[%clk 0:03:02.6]} 7... d4 {[%clk 0:03:00.1]} 8. e3 {[%clk 0:03:03]} 8...
Nc6 {[%clk 0:03:00.1]} 9. exd4 {[%clk 0:03:03.2]} 9... cxd4 {[%clk 0:03:01]} 10.
Re1 {[%clk 0:03:03.6]} 10... Ne8 {[%clk 0:02:47.1]} 11. Ne5 {[%clk 0:02:59.4]}
11... Nxe5 {[%clk 0:02:46.2]} 12. Rxe5 {[%clk 0:03:00.3]} 12... f6 {[%clk
0:02:36.5]} 13. Re1 {[%clk 0:03:00.5]} 13... e5 {[%clk 0:02:36.2]} 14. d3 {[%clk
0:03:01]} 14... Qc7 {[%clk 0:02:30.1]} 15. Nd2 {[%clk 0:02:56.1]} 15... Bd7
{[%clk 0:02:29.5]} 16. f4 {[%clk 0:02:50.2]} 16... Bc6 {[%clk 0:02:15.4]} 17.
Bxc6 {[%clk 0:02:46.8]} 17... bxc6 {[%clk 0:02:12.2]} 18. Qf3 {[%clk 0:02:37]}
18... Bb4 {[%clk 0:02:06.5]} 19. Re2 {[%clk 0:02:32.3]} 19... Bxd2 {[%clk
0:02:05]} 20. Rxd2 {[%clk 0:02:33.2]} 20... Nd6 {[%clk 0:01:54.4]} 21. Ba3
{[%clk 0:02:08.4]} 21... Qa5 {[%clk 0:01:54.2]} 22. Bxd6 {[%clk 0:02:01.3]}
22... Qxd2 {[%clk 0:01:53.9]} 23. Bxf8 {[%clk 0:01:57.9]} 23... Rxf8 {[%clk
0:01:54.8]} 24. Rf1 {[%clk 0:01:36.1]} 24... exf4 {[%clk 0:01:40.3]} 25. gxf4
{[%clk 0:01:37]} 25... Qxa2 {[%clk 0:01:34]} 26. Qxc6 {[%clk 0:01:36.3]} 26...
Qxb3 {[%clk 0:01:32.8]} 27. Qd5+ {[%clk 0:01:34.9]} 27... Kh8 {[%clk 0:01:31.8]}
28. Qxd4 {[%clk 0:01:35.4]} 28... a5 {[%clk 0:01:21.2]} 29. Qc5 {[%clk
0:01:21.8]} 29... Rd8 {[%clk 0:01:12.9]} 30. Qxa5 {[%clk 0:01:18.4]} 30... Qxd3
{[%clk 0:01:11]} 31. c5 {[%clk 0:00:52.4]} 31... h6 {[%clk 0:01:06.5]} 32. c6
{[%clk 0:00:43.3]} 32... Qe3+ {[%clk 0:01:03.1]} 33. Rf2 {[%clk 0:00:35.7]}
33... Rd1+ {[%clk 0:00:56.6]} 34. Kg2 {[%clk 0:00:35.1]} 34... Qe4+ {[%clk
0:00:57.1]} 35. Kh3 {[%clk 0:00:20.1]} 35... Rd3+ {[%clk 0:00:53.1]} 36. Kh4
{[%clk 0:00:20.3]} 36... g5+ {[%clk 0:00:47.2]} 37. Kh5 {[%clk 0:00:20.4]} 37...
Rh3+ {[%clk 0:00:39.2]} 38. Kg4 {[%clk 0:00:20.4]} 38... Qe6+ {[%clk 0:00:26.3]}
39. f5 {[%clk 0:00:16.1]} 39... Rh4+ {[%clk 0:00:26.1]} 40. Kg3 {[%clk
0:00:16.5]} 40... Qd6+ {[%clk 0:00:22.8]} 41. Kg2 {[%clk 0:00:08.3]} 41... Rxh2+
{[%clk 0:00:22.4]} 42. Kg1 {[%clk 0:00:06.1]} 42... Qg3+ {[%clk 0:00:21.2]} 43.
Kf1 {[%clk 0:00:06]} 43... Qxf2# {[%clk 0:00:21]} 0-1

[Event "*** Titled Tuesday Blitz"]
[Site "Chess.com"]
[Date "2020.11.03"]
[Round "1"]
[White "oneshot007"]
[Black "xberli"]
[Result "0-1"]
[WhiteElo "2208"]
[BlackElo "2549"]
[TimeControl "180+1"]
[EndTime "10:07:25 PST"]
[Termination "xberli won by resignation"]

1. e4 {[%clk 0:03:00.3]} 1... c5 {[%clk 0:02:59.3]} 2. Nf3 {[%clk 0:02:59.4]}
2... d6 {[%clk 0:02:59.4]} 3. d4 {[%clk 0:02:59.7]} 3... cxd4 {[%clk 0:03:00.3]}
4. Nxd4 {[%clk 0:03:00.3]} 4... Nf6 {[%clk 0:03:00.8]} 5. Nc3 {[%clk 0:03:00.9]}
5... a6 {[%clk 0:03:01.3]} 6. Be3 {[%clk 0:03:01.1]} 6... e5 {[%clk 0:03:01.2]}
7. Nf3 {[%clk 0:03:01.1]} 7... Be7 {[%clk 0:03:01.2]} 8. Bc4 {[%clk 0:03:00.3]}
8... O-O {[%clk 0:03:01.5]} 9. Bb3 {[%clk 0:03:00.4]} 9... Be6 {[%clk
0:02:59.9]} 10. Bxe6 {[%clk 0:02:56.9]} 10... fxe6 {[%clk 0:03:00.8]} 11. O-O
{[%clk 0:02:52.5]} 11... Nc6 {[%clk 0:02:42.3]} 12. Qe2 {[%clk 0:02:41.2]} 12...
d5 {[%clk 0:02:29]} 13. Rfd1 {[%clk 0:02:35.2]} 13... d4 {[%clk 0:02:17.5]} 14.
Bg5 {[%clk 0:02:34.9]} 14... Kh8 {[%clk 0:02:13.2]} 15. Bxf6 {[%clk 0:02:27.8]}
15... Bxf6 {[%clk 0:02:14.1]} 16. Qc4 {[%clk 0:02:27]} 16... Qe7 {[%clk
0:02:10.6]} 17. Na4 {[%clk 0:02:18.4]} 17... Rac8 {[%clk 0:02:01.6]} 18. Nb6
{[%clk 0:02:15.6]} 18... Rc7 {[%clk 0:02:01]} 19. c3 {[%clk 0:01:06]} 19... Qd6
{[%clk 0:01:50.8]} 20. Qa4 {[%clk 0:00:32.5]} 20... Qc5 {[%clk 0:01:45.5]} 21.
Qb3 {[%clk 0:00:22.1]} 21... Bd8 {[%clk 0:01:25.8]} 22. Na4 {[%clk 0:00:12.9]}
22... Qe7 {[%clk 0:01:07.8]} 23. cxd4 {[%clk 0:00:11.9]} 23... exd4 {[%clk
0:01:07.5]} 24. Nxd4 {[%clk 0:00:12]} 24... Nxd4 {[%clk 0:01:02]} 25. Rxd4
{[%clk 0:00:12.9]} 25... Qf6 {[%clk 0:00:57.6]} 26. Rd2 {[%clk 0:00:13]} 26...
Rd7 {[%clk 0:00:52.4]} 27. Rad1 {[%clk 0:00:12.2]} 27... Rxd2 {[%clk 0:00:50.4]}
28. Rxd2 {[%clk 0:00:13.1]} 28... b5 {[%clk 0:00:49.9]} 29. Nc3 {[%clk
0:00:04.5]} 29... Bb6 {[%clk 0:00:49.7]} 30. Nd1 {[%clk 0:00:05]} 30... h6
{[%clk 0:00:49.3]} 31. Qd3 {[%clk 0:00:04.5]} 31... Bc5 {[%clk 0:00:48.7]} 32.
Kf1 {[%clk 0:00:04.5]} 32... Qe5 {[%clk 0:00:48.5]} 33. g3 {[%clk 0:00:03.7]}
33... Qh5 {[%clk 0:00:48.1]} 34. Kg2 {[%clk 0:00:03.7]} 34... Be7 {[%clk
0:00:45.4]} 35. f3 {[%clk 0:00:04]} 35... Bf6 {[%clk 0:00:45.2]} 36. Rc2 {[%clk
0:00:04.6]} 36... Qe8 {[%clk 0:00:43.6]} 37. Ne3 {[%clk 0:00:04.6]} 37... a5
{[%clk 0:00:41.9]} 38. Ng4 {[%clk 0:00:05]} 38... b4 {[%clk 0:00:41.7]} 39. e5
{[%clk 0:00:04.6]} 39... Be7 {[%clk 0:00:39.1]} 40. f4 {[%clk 0:00:05]} 40...
Qa8+ {[%clk 0:00:38.2]} 41. Qf3 {[%clk 0:00:05]} 41... Qd8 {[%clk 0:00:36.9]}
42. Nf2 {[%clk 0:00:04.7]} 42... a4 {[%clk 0:00:36]} 43. Qg4 {[%clk 0:00:05]}
43... b3 {[%clk 0:00:34.7]} 44. axb3 {[%clk 0:00:05.1]} 44... axb3 {[%clk
0:00:35.6]} 45. Re2 {[%clk 0:00:05.9]} 45... Qd5+ {[%clk 0:00:35.4]} 46. Qf3
{[%clk 0:00:05.8]} 46... Qb5 {[%clk 0:00:34.5]} 47. Ne4 {[%clk 0:00:06.3]} 47...
Rc8 {[%clk 0:00:33.7]} 48. Nc3 {[%clk 0:00:06.8]} 48... Rxc3 {[%clk 0:00:30.7]}
49. Rc2 {[%clk 0:00:07]} 49... Rxc2+ {[%clk 0:00:30.6]} 0-1

[Event "*** Titled Tuesday Blitz"]
[Site "Chess.com"]
[Date "2020.11.03"]
[Round "1"]
[White "RD4ever"]
[Black "Superfelix"]
[Result "1-0"]
[WhiteElo "2848"]
[BlackElo "2422"]
[TimeControl "180+1"]
[EndTime "10:07:28 PST"]
[Termination "RD4ever won by resignation"]

1. d4 {[%clk 0:02:57.8]} 1... g6 {[%clk 0:02:59.2]} 2. e4 {[%clk 0:02:57.2]}
2... c6 {[%clk 0:02:58.8]} 3. Nc3 {[%clk 0:02:55.9]} 3... d5 {[%clk 0:02:58.9]}
4. f3 {[%clk 0:02:54.3]} 4... Bg7 {[%clk 0:02:58.5]} 5. Be3 {[%clk 0:02:54.2]}
5... e6 {[%clk 0:02:52]} 6. Qd2 {[%clk 0:02:49.4]} 6... h5 {[%clk 0:02:51.7]} 7.
O-O-O {[%clk 0:02:45.1]} 7... b5 {[%clk 0:02:50.4]} 8. Kb1 {[%clk 0:02:38]} 8...
Nd7 {[%clk 0:02:49.3]} 9. Nh3 {[%clk 0:02:25.6]} 9... Nb6 {[%clk 0:02:48.1]} 10.
Bg5 {[%clk 0:02:05.7]} 10... Ne7 {[%clk 0:02:44.7]} 11. exd5 {[%clk 0:02:00.7]}
11... Nbxd5 {[%clk 0:02:43.4]} 12. Ne4 {[%clk 0:01:58.5]} 12... Rb8 {[%clk
0:02:33.8]} 13. Nf4 {[%clk 0:01:51.3]} 13... f6 {[%clk 0:02:13.8]} 14. Nxd5
{[%clk 0:01:32.6]} 14... Nxd5 {[%clk 0:02:14.7]} 15. Bh4 {[%clk 0:01:32.9]}
15... Bh6 {[%clk 0:01:53.4]} 16. Qe1 {[%clk 0:01:30.5]} 16... Kf7 {[%clk
0:01:47.3]} 17. Bd3 {[%clk 0:01:18.7]} 17... b4 {[%clk 0:01:44.7]} 18. Bc4
{[%clk 0:01:11.8]} 18... Re8 {[%clk 0:01:12.8]} 19. Bxd5 {[%clk 0:00:52.9]}
19... exd5 {[%clk 0:01:11.1]} 20. Qg3 {[%clk 0:00:53.3]} 20... dxe4 {[%clk
0:01:06.6]} 21. Qxb8 {[%clk 0:00:53.1]} 21... e3 {[%clk 0:00:49]} 22. Qxb4
{[%clk 0:00:47.6]} 22... Be6 {[%clk 0:00:41.8]} 23. Rhe1 {[%clk 0:00:42.6]}
23... Qd5 {[%clk 0:00:30.7]} 24. b3 {[%clk 0:00:40.6]} 24... Bf5 {[%clk
0:00:26.2]} 25. Re2 {[%clk 0:00:38.7]} 25... Bf4 {[%clk 0:00:21.7]} 26. Bg3
{[%clk 0:00:35.9]} 26... Bh6 {[%clk 0:00:20.1]} 27. Kb2 {[%clk 0:00:35.9]} 27...
a5 {[%clk 0:00:19.7]} 28. Qc5 {[%clk 0:00:34.9]} 28... Qd7 {[%clk 0:00:19.9]}
29. Qxa5 {[%clk 0:00:31.9]} 29... Bf8 {[%clk 0:00:18.3]} 30. Qc7 {[%clk
0:00:31.6]} 30... Qxc7 {[%clk 0:00:17.8]} 31. Bxc7 {[%clk 0:00:32.5]} 31... Rc8
{[%clk 0:00:18.1]} 32. Bf4 {[%clk 0:00:32.4]} 32... c5 {[%clk 0:00:17.6]} 33.
dxc5 {[%clk 0:00:32.7]} 33... Bxc5 {[%clk 0:00:17.1]} 34. c4 {[%clk 0:00:24.1]}
34... Re8 {[%clk 0:00:15.7]} 35. Kc3 {[%clk 0:00:21.7]} 35... g5 {[%clk
0:00:16]} 36. Bd6 {[%clk 0:00:21.8]} 36... Ba7 {[%clk 0:00:15]} 37. c5 {[%clk
0:00:21.8]} 37... g4 {[%clk 0:00:15.2]} 38. Rde1 {[%clk 0:00:21.7]} 38... gxf3
{[%clk 0:00:15.6]} 39. gxf3 {[%clk 0:00:22.6]} 39... Rc8 {[%clk 0:00:15.2]} 40.
b4 {[%clk 0:00:22.7]} 40... Be6 {[%clk 0:00:10.3]} 41. Rxe3 {[%clk 0:00:22.9]}
41... Re8 {[%clk 0:00:10.6]} 42. f4 {[%clk 0:00:20.8]} 42... f5 {[%clk
0:00:10.6]} 43. Rxe6 {[%clk 0:00:20.9]} 43... Rxe6 {[%clk 0:00:10.6]} 44. Rxe6
{[%clk 0:00:21.8]} 44... Kxe6 {[%clk 0:00:11.5]} 45. Kd4 {[%clk 0:00:22.6]}
45... Bb8 {[%clk 0:00:11.3]} 46. Bxb8 {[%clk 0:00:22.6]} 1-0

[Event "*** Titled Tuesday Blitz"]
[Site "Chess.com"]
[Date "2020.11.03"]
[Round "1"]
[White "KingCrusher275"]
[Black "SophieNikoladze"]
[Result "1-0"]
[WhiteElo "2596"]
[BlackElo "2283"]
[TimeControl "180+1"]
[EndTime "10:07:28 PST"]
[Termination "KingCrusher275 won on time"]

1. d4 {[%clk 0:03:00.9]} 1... b5 {[%clk 0:02:57.5]} 2. e4 {[%clk 0:03:00.2]}
2... Bb7 {[%clk 0:02:55.4]} 3. Nd2 {[%clk 0:02:58.7]} 3... a6 {[%clk 0:02:55.1]}
4. Bd3 {[%clk 0:02:57]} 4... e6 {[%clk 0:02:55.4]} 5. Ngf3 {[%clk 0:02:56.6]}
5... c5 {[%clk 0:02:56]} 6. c3 {[%clk 0:02:56.4]} 6... d5 {[%clk 0:02:56.4]} 7.
e5 {[%clk 0:02:56.2]} 7... Nc6 {[%clk 0:02:56.6]} 8. Nf1 {[%clk 0:02:38.6]} 8...
Qb6 {[%clk 0:02:55.5]} 9. Be3 {[%clk 0:02:35.6]} 9... f5 {[%clk 0:02:52.6]} 10.
exf6 {[%clk 0:02:29]} 10... gxf6 {[%clk 0:02:50.4]} 11. N1d2 {[%clk 0:02:21]}
11... O-O-O {[%clk 0:02:49.5]} 12. O-O {[%clk 0:02:13.6]} 12... Bd6 {[%clk
0:02:47.8]} 13. Qe2 {[%clk 0:01:59.3]} 13... Nge7 {[%clk 0:02:43.3]} 14. dxc5
{[%clk 0:01:57.4]} 14... Bxc5 {[%clk 0:02:38.3]} 15. Bxc5 {[%clk 0:01:58.3]}
15... Qxc5 {[%clk 0:02:37.5]} 16. Qxe6+ {[%clk 0:01:58.5]} 16... Kb8 {[%clk
0:02:37.4]} 17. Nb3 {[%clk 0:01:57.3]} 17... Qb6 {[%clk 0:02:33.4]} 18. Nbd4
{[%clk 0:01:54.8]} 18... Rhg8 {[%clk 0:02:21.6]} 19. Nxc6+ {[%clk 0:01:33.9]}
19... Nxc6 {[%clk 0:02:19]} 20. Nd4 {[%clk 0:01:25.8]} 20... Qc7 {[%clk
0:02:13.6]} 21. Rfe1 {[%clk 0:00:39.3]} 21... Nxd4 {[%clk 0:02:05.2]} 22. cxd4
{[%clk 0:00:39.2]} 22... Qg7 {[%clk 0:02:04.1]} 23. g3 {[%clk 0:00:37.7]} 23...
Qh6 {[%clk 0:01:58.2]} 24. a4 {[%clk 0:00:35.5]} 24... Qd2 {[%clk 0:01:45.9]}
25. Red1 {[%clk 0:00:29.3]} 25... Qxb2 {[%clk 0:01:45]} 26. axb5 {[%clk
0:00:27.9]} 26... axb5 {[%clk 0:01:41.5]} 27. Qb6 {[%clk 0:00:24.7]} 27... Rd7
{[%clk 0:01:27.9]} 28. Ra7 {[%clk 0:00:19.8]} 28... Qb3 {[%clk 0:01:24.9]} 29.
Rda1 {[%clk 0:00:18.2]} 29... Qa4 {[%clk 0:01:13.5]} 30. R1xa4 {[%clk
0:00:16.9]} 30... bxa4 {[%clk 0:01:13.5]} 31. Rxa4 {[%clk 0:00:17.2]} 31... Rc8
{[%clk 0:01:13.4]} 32. Bb5 {[%clk 0:00:17.4]} 32... Rdc7 {[%clk 0:01:10.7]} 33.
Ba6 {[%clk 0:00:16.4]} 33... Rc1+ {[%clk 0:01:07.7]} 34. Kg2 {[%clk 0:00:16.8]}
34... R8c7 {[%clk 0:01:07.5]} 35. Bxb7 {[%clk 0:00:17.1]} 35... Rxb7 {[%clk
0:01:06.7]} 36. Qd6+ {[%clk 0:00:17.2]} 36... Rcc7 {[%clk 0:01:02.6]} 37. Ra6
{[%clk 0:00:17.4]} 37... Rb2 {[%clk 0:00:59.8]} 38. Rc6 {[%clk 0:00:17.5]} 38...
Rb7 {[%clk 0:00:58.7]} 39. Rxc7 {[%clk 0:00:17.8]} 39... Rxc7 {[%clk 0:00:58.7]}
40. Qxd5 {[%clk 0:00:18.5]} 40... Kc8 {[%clk 0:00:58.8]} 41. Qe6+ {[%clk
0:00:19]} 41... Kb8 {[%clk 0:00:58.2]} 42. d5 {[%clk 0:00:19.7]} 42... Rb7
{[%clk 0:00:57.9]} 43. d6 {[%clk 0:00:20.1]} 43... Ka7 {[%clk 0:00:16.4]} 44. d7
{[%clk 0:00:20.1]} 1-0

[Event "*** Titled Tuesday Blitz"]
[Site "Chess.com"]
[Date "2020.11.03"]
[Round "1"]
[White "NefeLV"]
[Black "petrkostenko"]
[Result "0-1"]
[WhiteElo "1746"]
[BlackElo "2474"]
[TimeControl "180+1"]
[EndTime "10:07:31 PST"]
[Termination "petrkostenko won on time"]

1. c4 {[%clk 0:02:53.3]} 1... e6 {[%clk 0:02:57.9]} 2. d4 {[%clk 0:02:53.1]}
2... b6 {[%clk 0:02:57.2]} 3. Nf3 {[%clk 0:02:52]} 3... Bb7 {[%clk 0:02:56.6]}
4. Nc3 {[%clk 0:02:52.8]} 4... Nf6 {[%clk 0:02:54.3]} 5. e3 {[%clk 0:02:52.5]}
5... g6 {[%clk 0:02:52.9]} 6. Be2 {[%clk 0:02:52.1]} 6... Bg7 {[%clk 0:02:52.6]}
7. O-O {[%clk 0:02:51.2]} 7... O-O {[%clk 0:02:53]} 8. b3 {[%clk 0:02:36.9]}
8... c5 {[%clk 0:02:45.7]} 9. Bb2 {[%clk 0:02:31.4]} 9... cxd4 {[%clk
0:02:38.4]} 10. exd4 {[%clk 0:02:31.9]} 10... d5 {[%clk 0:02:37.7]} 11. Rc1
{[%clk 0:02:29.9]} 11... Nc6 {[%clk 0:02:34.9]} 12. Re1 {[%clk 0:02:23]} 12...
Re8 {[%clk 0:02:33.9]} 13. Ne5 {[%clk 0:02:17.4]} 13... dxc4 {[%clk 0:02:14.5]}
14. bxc4 {[%clk 0:02:13.2]} 14... Nxd4 {[%clk 0:02:04.7]} 15. Nb5 {[%clk
0:02:00.3]} 15... Nxe2+ {[%clk 0:01:56.9]} 16. Rxe2 {[%clk 0:01:56.6]} 16... Ne4
{[%clk 0:01:46]} 17. f3 {[%clk 0:01:42]} 17... a6 {[%clk 0:01:44.6]} 18. Na3
{[%clk 0:01:28.5]} 18... Nc5 {[%clk 0:01:42.8]} 19. Nc2 {[%clk 0:01:12.2]} 19...
Qc7 {[%clk 0:01:40.1]} 20. f4 {[%clk 0:01:10.8]} 20... Rad8 {[%clk 0:01:39]} 21.
Qf1 {[%clk 0:01:08.4]} 21... Ba8 {[%clk 0:01:10.2]} 22. Nd4 {[%clk 0:00:52.4]}
22... Ne4 {[%clk 0:01:01.5]} 23. Ndf3 {[%clk 0:00:43.5]} 23... Qc5+ {[%clk
0:00:59.4]} 24. Kh1 {[%clk 0:00:42]} 24... Nf6 {[%clk 0:00:46.7]} 25. Ng5 {[%clk
0:00:39.9]} 25... Re7 {[%clk 0:00:43]} 26. a3 {[%clk 0:00:17.7]} 26... Qc8
{[%clk 0:00:40]} 27. Rec2 {[%clk 0:00:14.4]} 27... Nh5 {[%clk 0:00:37]} 28. Re2
{[%clk 0:00:13.2]} 28... h6 {[%clk 0:00:27.1]} 29. Ngf3 {[%clk 0:00:11.2]} 29...
Nf6 {[%clk 0:00:26.9]} 30. Qf2 {[%clk 0:00:08]} 30... Qc7 {[%clk 0:00:25.8]} 31.
Qg3 {[%clk 0:00:07.7]} 31... Ne4 {[%clk 0:00:24.2]} 32. Qh4 {[%clk 0:00:06.5]}
32... Ree8 {[%clk 0:00:22.2]} 33. Ba1 {[%clk 0:00:04.2]} 33... b5 {[%clk
0:00:19.3]} 34. Qg4 {[%clk 0:00:03.8]} 34... Kh7 {[%clk 0:00:17.9]} 35. h4
{[%clk 0:00:02.5]} 35... Nf6 {[%clk 0:00:15.5]} 36. Qh3 {[%clk 0:00:02.1]} 36...
Nh5 {[%clk 0:00:15.1]} 0-1